bitfinex/quotes_SOLUSD_20240915
["timestamp","ask_amount","ask_price","bid_price","bid_amount"]
[1726425054859,0.2482296,134.11,134.09,15.0680852]
[1726425055755,0.2482296,134.11,134.08,15.0680852]
[1726425056070,0.2482296,134.11,134.07,15.0680852]
[1726425062844,0.2482296,134.11,134.06,15.0680852]
[1726425063170,0.2482296,134.11,134.07,15.0680852]
[1726425063471,0.2482296,134.11,134.06,15.0680852]
[1726425063871,0.2482296,134.11,134.04,20.0]
[1726425063872,0.2482296,134.11,134.07,15.0680852]
[1726425064172,0.2482296,134.11,134.08,15.0680852]
[1726425065058,0.2482296,134.11,134.07,15.0680852]
[1726425071874,0.2482296,134.11,134.08,15.0680852]
[1726425073076,0.2482296,134.11,134.04,20.0]
[1726425073255,0.2482296,134.11,134.06,15.0680852]
[1726425075557,0.2482296,134.11,134.07,15.0680852]
[1726425075881,0.2482296,134.11,134.04,20.0]
[1726425076056,0.2482296,134.11,134.07,15.0680852]
[1726425082981,23.776884,134.09,134.02,22.86601785]
[1726425083280,23.776884,134.09,134.02,15.0680852]
[1726425083478,15.2965,134.1,134.03,15.0680852]
[1726425083658,15.2965,134.1,134.07,15.0680852]
[1726425084388,15.2965,134.1,134.08,15.80309162]
[1726425084562,0.2482296,134.11,134.09,15.0680852]
[1726425086562,0.2482296,134.11,134.1,15.0680852]
[1726425088584,0.2482296,134.11,134.1,35.0680852]
[1726425094475,0.2482296,134.11,134.06,20.0]
[1726425094680,0.2482296,134.11,134.07,30.0]
[1726425094888,0.2482296,134.11,134.08,20.0]
[1726425095394,0.2482296,134.11,134.07,15.0680852]
[1726425095688,0.2482296,134.11,134.08,15.0680852]
[1726425096471,0.2482296,134.11,134.1,15.0680852]
[1726425096764,0.2482296,134.11,134.1,35.0680852]
[1726425097576,0.2482296,134.11,134.1,38.70720871]
[1726425098489,0.2482296,134.11,134.1,23.63912351]
[1726425098687,0.2482296,134.11,134.1,20.0]
[1726425099174,0.2482296,134.11,134.1,3.63994667]
[1726425101395,0.2482296,134.11,134.1,18.70803187]
[1726425103499,0.2482296,134.11,134.1,38.70803187]
[1726425103799,0.2482296,134.11,134.1,35.0680852]
[1726425106906,0.2482296,134.11,134.05,29.1716343]
[1726425107107,0.2482296,134.11,134.09,15.0680852]
[1726425107283,0.2482296,134.11,134.08,15.0680852]
[1726425107689,0.2482296,134.11,134.09,15.0680852]
[1726425109794,0.2482296,134.11,134.06,30.0]
[1726425110101,0.2482296,134.11,134.09,15.0680852]
[1726425115227,0.2482296,134.11,134.1,15.80371912]
[1726425115508,0.2482296,134.11,134.07,20.0]
[1726425115509,0.2482296,134.11,134.09,15.0680852]
[1726425116215,0.2482296,134.11,134.1,15.80328026]
[1726425117284,0.2482296,134.11,134.1,15.0680852]
[1726425117716,0.2482296,134.11,134.1,35.0680852]
[1726425119218,0.2482296,134.11,134.1,36.23376319]
[1726425120697,0.2482296,134.11,134.1,35.0680852]
[1726425122999,0.2482296,134.11,134.09,20.0]
[1726425123805,0.2482296,134.11,134.06,7.80023409]
[1726425123806,15.6135296,134.11,134.06,7.80023409]
[1726425124118,15.6135296,134.11,134.05,15.0680852]
[1726425124300,15.6135296,134.11,134.06,30.0]
[1726425125011,15.6135296,134.11,134.05,15.0680852]
[1726425125194,15.6135296,134.11,134.06,20.0]
[1726425127527,15.6135296,134.11,134.04,35.0680852]
[1726425130490,15.6135296,134.11,134.04,20.0]
[1726425130691,15.6135296,134.11,134.05,15.0680852]
[1726425130898,15.6135296,134.11,134.06,20.0]
[1726425132819,15.6135296,134.11,134.04,35.0680852]
[1726425133308,15.6135296,134.11,134.07,15.0680852]
[1726425138225,0.2482296,134.11,134.1,15.0680852]
[1726425138600,0.2482296,134.11,134.1,35.0680852]
[1726425149318,0.2482296,134.11,134.1,20.0]
[1726425149831,0.2482296,134.11,134.07,20.0]
[1726425150030,0.2482296,134.11,134.07,35.0680852]
[1726425151743,15.1122,134.1,134.03,6.6562]
[1726425151939,15.1122,134.1,134.05,15.0680852]
[1726425152349,15.1122,134.1,134.04,30.0]
[1726425152647,15.1122,134.1,134.05,15.0680852]
[1726425153051,15.1122,134.1,134.06,15.0680852]
[1726425155533,15.1122,134.1,134.08,15.0680852]
[1726425156230,15.1122,134.1,134.07,15.0680852]
[1726425156642,15.1122,134.1,134.08,15.0680852]
[1726425156963,0.2482296,134.11,134.09,15.0680852]
[1726425159752,0.2482296,134.11,134.1,15.0680852]
[1726425160647,0.2482296,134.11,134.09,15.0680852]
[1726425162340,0.2482296,134.11,134.1,35.0680852]
[1726425163065,0.2482296,134.11,134.1,38.71639955]
[1726425163664,0.2482296,134.11,134.1,42.3647139]
[1726425164463,0.2482296,134.11,134.1,38.71639955]
[1726425164639,0.2482296,134.11,134.1,23.64831435]
[1726425164964,0.2482296,134.11,134.1,20.0]
[1726425165340,0.2482296,134.11,134.1,23.64831639]
[1726425166659,0.2482296,134.11,134.1,38.71640138]
[1726425168461,0.2482296,134.11,134.1,40.19132905]
[1726425169754,0.2482296,134.11,134.1,38.71640138]
[1726425170939,0.2482296,134.11,134.1,40.20295872]
[1726425171142,0.2482296,134.11,134.1,38.71640138]
[1726425172253,0.2482296,134.11,134.1,40.207309]
[1726425173647,0.2482296,134.11,134.1,35.0680852]
[1726425174246,0.2482296,134.11,134.1,38.71665577]
[1726425176176,0.2482296,134.11,134.1,3.64857057]
[1726425176484,0.2482296,134.11,134.09,15.0680852]
[1726425176694,0.2482296,134.11,134.09,18.71665577]
[1726425176975,0.2482296,134.11,134.09,15.0680852]
[1726425177560,0.2482296,134.11,134.1,20.0]
[1726425177763,0.2482296,134.11,134.1,23.65060434]
[1726425180694,0.2482296,134.11,134.1,18.71868954]
[1726425180861,0.2482296,134.11,134.1,35.0680852]
[1726425181056,0.2482296,134.11,134.1,38.71868954]
[1726425183281,0.2482296,134.11,134.1,35.0680852]
[1726425183585,0.2482296,134.11,134.1,38.71871193]
[1726425187197,0.2482296,134.11,134.1,3.65062673]
[1726425189499,0.2482296,134.11,134.1,23.65062673]
[1726425189712,0.2482296,134.11,134.1,20.0]
[1726425190094,0.2482296,134.11,134.1,23.64978228]
[1726425190494,0.2482296,134.11,134.1,38.71786748]
[1726425193617,0.2482296,134.11,134.1,38.71623995]
[1726425194403,0.2482296,134.11,134.1,38.71647889]
[1726425199617,0.2482296,134.11,134.1,3.64839369]
[1726425200028,0.2482296,134.11,134.08,20.0]
[1726425200228,0.2482296,134.11,134.09,3.64976107]
[1726425200621,0.2482296,134.11,134.1,3.64976107]
[1726425200815,0.2482296,134.11,134.09,3.64976107]
[1726425201013,0.2482296,134.11,134.1,3.64976107]
[1726425201219,0.2482296,134.11,134.07,15.0680852]
[1726425201729,0.2482296,134.11,134.08,3.64860965]
[1726425201912,0.2482296,134.11,134.09,3.64860965]
[1726425202107,0.2482296,134.11,134.1,3.64860965]
[1726425202313,0.2482296,134.11,134.08,3.64860965]
[1726425202628,0.2482296,134.11,134.09,23.64860965]
[1726425202819,0.2482296,134.11,134.1,3.64860965]
[1726425203013,0.2482296,134.11,134.09,23.64860965]
[1726425203203,0.2482296,134.11,134.1,3.64860965]
[1726425203911,0.2482296,134.11,134.1,3.64733801]
[1726425206136,0.2482296,134.11,134.07,18.71542321]
[1726425206319,0.2482296,134.11,134.08,23.64733801]
[1726425206521,0.2482296,134.11,134.09,23.64733801]
[1726425207116,16.2148296,134.11,134.05,7.80144744]
[1726425207309,16.2148296,134.11,134.06,38.71615436]
[1726425207620,16.2148296,134.11,134.07,23.64806916]
[1726425207817,16.2148296,134.11,134.08,3.64806916]
[1726425208120,16.2148296,134.11,134.09,3.64806916]
[1726425208318,16.2148296,134.11,134.08,3.64806916]
[1726425208513,16.2148296,134.11,134.09,3.64806916]
[1726425208715,16.2148296,134.11,134.07,3.64806916]
[1726425208918,16.2148296,134.11,134.08,3.64806916]
[1726425209124,16.2148296,134.11,134.09,3.64806916]
[1726425209305,16.2148296,134.11,134.07,3.64806916]
[1726425209510,16.2148296,134.11,134.08,3.64806916]
[1726425209729,16.2148296,134.11,134.09,3.64806916]
[1726425211130,16.2148296,134.11,134.08,3.64806916]
[1726425211431,16.2148296,134.11,134.09,3.64806916]
[1726425211633,16.2148296,134.11,134.07,15.0680852]
[1726425211634,16.2148296,134.11,134.08,3.64806916]
[1726425211830,16.2148296,134.11,134.09,3.64806916]
[1726425212037,16.2148296,134.11,134.07,23.64806916]
[1726425212331,1.49810804,134.1,134.08,3.64806916]
[1726425212738,1.49810804,134.1,134.06,23.64806916]
[1726425212917,1.49810804,134.1,134.07,3.64806916]
[1726425213233,17.71293764,134.11,134.07,3.64806916]
[1726425213435,17.71293764,134.11,134.07,3.64820019]
[1726425214108,17.71293764,134.11,134.06,20.0]
[1726425214312,16.2148296,134.11,134.06,20.0]
[1726425215138,16.2148296,134.11,134.06,35.0680852]
[1726425215336,16.2148296,134.11,134.07,15.0680852]
[1726425215533,16.2148296,134.11,134.09,15.0680852]
[1726425215833,0.2482296,134.11,134.09,15.0680852]
[1726425217018,0.2482296,134.11,134.08,15.0680852]
[1726425221945,0.2482296,134.11,134.08,20.0]
[1726425222531,0.2482296,134.11,134.05,15.0680852]
[1726425223029,0.2482296,134.11,134.06,20.0]
[1726425226717,16.4774,134.1,134.06,20.0]
[1726425226925,16.4774,134.1,134.04,20.0]
[1726425227124,16.4774,134.1,134.04,35.0680852]
[1726425228627,1.49810804,134.09,134.04,20.0]
[1726425229153,23.776884,134.09,134.04,20.0]
[1726425229324,16.4774,134.1,134.04,20.0]
[1726425229649,16.4774,134.1,134.04,35.0680852]
[1726425235047,16.4774,134.1,134.07,15.0680852]
[1726425235537,16.4774,134.1,134.06,15.0680852]
[1726425237052,16.4774,134.1,134.06,20.0]
[1726425238047,16.4774,134.1,134.05,15.0680852]
[1726425238258,1.49810804,134.09,134.03,20.0]
[1726425238549,1.49810804,134.09,134.03,35.0680852]
[1726425246162,1.49810804,134.09,134.04,15.0680852]
[1726425246540,1.49810804,134.09,134.05,20.0]
[1726425248956,16.4774,134.1,134.08,15.0680852]
[1726425249167,0.2482296,134.11,134.09,15.0680852]
[1726425250259,0.2482296,134.11,134.1,15.0680852]
[1726425253887,0.2482296,134.11,134.1,35.0680852]
[1726425254167,0.2482296,134.11,134.1,20.0]
[1726425255164,0.2482296,134.11,134.08,15.0680852]
[1726425255662,0.2482296,134.11,134.09,20.0]
[1726425255865,0.2482296,134.11,134.1,15.0680852]
[1726425256068,0.2482296,134.11,134.1,35.0680852]
[1726425263483,0.2482296,134.15,134.11,20.0]
[1726425263653,0.2482296,134.15,134.14,15.0680852]
[1726425264059,0.2482296,134.15,134.14,35.0680852]
[1726425272672,0.2482296,134.15,134.1,23.17753552]
[1726425272887,0.2482296,134.19,134.15,20.0]
[1726425272888,15.4129592,134.19,134.15,20.0]
[1726425274398,1.49810804,134.18,134.13,15.0680852]
[1726425274684,15.4129592,134.19,134.13,15.0680852]
[1726425275594,15.4129592,134.19,134.14,15.0680852]
[1726425276775,15.4129592,134.19,134.16,15.0680852]
[1726425280391,15.4129592,134.19,134.15,15.0680852]
[1726425282488,1.49810804,134.18,134.14,15.0680852]
[1726425282805,1.49810804,134.17,134.14,20.0]
[1726425283675,1.49810804,134.18,134.14,20.0]
[1726425284080,1.49810804,134.18,134.13,20.0]
[1726425284295,1.49810804,134.18,134.11,15.0680852]
[1726425284479,1.49810804,134.18,134.12,20.0]
[1726425287613,23.776884,134.17,134.1,35.0680852]
[1726425287817,1.49810804,134.16,134.09,15.3163148]
[1726425288109,23.776884,134.17,134.09,15.3163148]
[1726425288110,15.4165,134.15,134.09,0.2482296]
[1726425288311,1.49810804,134.14,134.09,0.2482296]
[1726425289512,1.49810804,134.14,134.09,20.2482296]
[1726425290805,15.4165,134.15,134.09,20.2482296]
[1726425292107,23.776884,134.14,134.09,20.2482296]
[1726425293697,15.4165,134.15,134.09,20.2482296]
[1726425296535,15.4165,134.15,134.09,15.3163148]
[1726425297315,15.4165,134.15,134.09,0.2482296]
[1726425297623,15.4165,134.15,134.09,20.2482296]
[1726425297800,1.49810804,134.14,134.09,20.2482296]
[1726425298699,1.49810804,134.13,134.09,0.2482296]
[1726425301029,15.1803,134.12,134.09,0.2482296]
[1726425301210,1.49810804,134.11,134.09,0.2482296]
[1726425305125,38.957184,134.1,134.09,0.2482296]
[1726425305327,40.45529204,134.1,134.09,0.2482296]
[1726425311609,38.957184,134.1,134.09,0.2482296]
[1726425312837,40.45529204,134.1,134.09,0.2482296]
[1726425314346,60.45529204,134.1,134.09,0.2482296]
[1726425314549,60.45529204,134.1,134.05,0.2482296]
[1726425314550,392.1763,134.09,134.05,0.2482296]
[1726425314721,447.11549204,134.08,134.05,0.2482296]
[1726425315216,7.4593,134.06,134.05,0.2482296]
[1726425315425,31.236184,134.06,134.05,0.2482296]
[1726425315665,23.776884,134.06,134.05,0.2482296]
[1726425315833,1.49810804,134.06,134.05,0.2482296]
[1726425316530,401.8405,134.08,134.05,0.2482296]
[1726425316730,1.49810804,134.07,134.05,0.2482296]
[1726425317230,401.8405,134.08,134.05,0.2482296]
[1726425317444,25.27499204,134.07,134.05,0.2482296]
[1726425317652,23.776884,134.07,134.05,0.2482296]
[1726425319331,1.49810804,134.06,134.05,0.2482296]
[1726425319537,25.27499204,134.06,134.05,0.2482296]
[1726425321133,32.73429204,134.06,134.05,0.2482296]
[1726425321339,25.27499204,134.06,134.05,0.2482296]
[1726425324955,23.776884,134.06,134.05,0.2482296]
[1726425326145,43.776884,134.06,134.05,0.2482296]
[1726425327566,45.27499204,134.06,134.05,0.2482296]
[1726425332559,52.73429204,134.06,134.05,0.2482296]
[1726425339972,75.15429204,134.06,134.05,0.2482296]
[1726425340172,75.15429204,134.06,134.01,0.2482296]
[1726425340173,7.4615,134.03,134.01,0.2482296]
[1726425340346,45.27499204,134.02,134.01,0.2482296]
[1726425340546,52.73649204,134.02,134.01,0.2482296]
[1726425340754,69.06579204,134.02,134.01,0.2482296]
[1726425342646,60.106184,134.02,134.01,0.2482296]
[1726425343561,24.11224963,134.06,134.01,0.2482296]
[1726425343760,16.3293,134.06,134.01,15.3163148]
[1726425343944,1.49810804,134.05,134.01,15.3163148]
[1726425344140,1.49810804,134.04,134.01,15.3163148]
[1726425345046,23.776884,134.03,134.01,15.3163148]
[1726425345246,25.27499204,134.02,134.01,15.3163148]
[1726425347373,1.49810804,134.02,134.01,15.3163148]
[1726425347556,23.776884,134.03,134.01,15.3163148]
[1726425347756,1.49810804,134.02,134.01,15.3163148]
[1726425352564,23.776884,134.04,134.01,15.3163148]
[1726425352749,23.776884,134.04,134.03,15.0680852]
[1726425353975,23.776884,134.04,134.01,0.2482296]
[1726425354162,23.776884,134.04,134.02,15.0680852]
[1726425356163,23.776884,134.04,134.03,15.0680852]
[1726425356985,23.776884,134.04,134.01,15.3163148]
[1726425357788,15.3764,134.09,134.03,15.0680852]
[1726425357957,386.90008803,134.1,134.07,15.0680852]
[1726425357958,385.6,134.1,134.07,15.0680852]
[1726425358158,385.6,134.1,134.09,15.0680852]
[1726425358356,15.3764,134.12,134.09,15.0680852]
[1726425358572,15.3764,134.12,134.08,15.0680852]
[1726425359582,20.0,134.11,134.08,15.0680852]
[1726425359790,15.3764,134.12,134.08,15.0680852]
[1726425360682,23.776884,134.11,134.08,15.0680852]
[1726425360993,23.776884,134.11,134.07,15.0680852]
[1726425362391,23.776884,134.09,134.05,15.0680852]
[1726425362591,1.49810804,134.08,134.05,15.0680852]
[1726425362767,1.49810804,134.07,134.02,23.65551271]
[1726425363085,1.49810804,134.07,134.04,15.0680852]
[1726425363669,1.49810804,134.06,134.04,15.0680852]
[1726425363989,23.776884,134.08,134.05,15.0680852]
[1726425364292,23.776884,134.1,134.05,15.0680852]
[1726425367462,23.776884,134.1,134.04,15.0680852]
[1726425367676,23.776884,134.08,134.04,15.0680852]
[1726425367996,409.376884,134.1,134.04,15.0680852]
[1726425369599,409.376884,134.1,134.07,15.0680852]
[1726425374098,23.776884,134.1,134.07,15.0680852]
[1726425380477,23.776884,134.1,134.06,15.0680852]
[1726425382006,22.42,134.09,134.06,15.0680852]
[1726425382206,23.776884,134.1,134.06,15.0680852]
[1726425388689,23.776884,134.1,134.05,15.0680852]
[1726425391112,23.776884,134.1,134.06,15.0680852]
[1726425396914,385.6,134.13,134.07,15.0680852]
[1726425397126,385.6,134.13,134.05,21.9426]
[1726425397127,385.6,134.13,134.08,15.0680852]
[1726425397621,385.6,134.13,134.07,15.0680852]
[1726425398192,23.776884,134.12,134.07,15.0680852]
[1726425400103,23.776884,134.1,134.07,15.0680852]
[1726425401109,1.49810804,134.11,134.07,15.0680852]
[1726425403610,23.776884,134.12,134.07,15.0680852]
[1726425407636,23.776884,134.1,134.06,3.65426389]
[1726425407810,1.49810804,134.09,134.05,37.0106852]
[1726425408127,1.49810804,134.09,134.06,3.6542054]
[1726425408325,1.49810804,134.09,134.05,21.9426]
[1726425408630,1.49810804,134.09,134.06,3.6542626]
[1726425408824,1.49810804,134.09,134.05,21.9426]
[1726425409143,1.49810804,134.09,134.06,3.65417703]
[1726425409327,1.49810804,134.09,134.05,21.9426]
[1726425409531,1.49810804,134.09,134.06,3.65415001]
[1726425409830,1.49810804,134.09,134.05,21.9426]
[1726425410010,1.49810804,134.09,134.06,3.65461178]
[1726425410334,1.49810804,134.09,134.05,21.9426]
[1726425410511,1.49810804,134.09,134.06,3.65464347]
[1726425410811,1.49810804,134.09,134.05,37.0106852]
[1726425411012,1.49810804,134.09,134.06,3.65470661]
[1726425411213,1.49810804,134.09,134.05,37.0106852]
[1726425413030,1.49810804,134.09,134.06,15.0680852]
[1726425416232,1.49810804,134.09,134.05,37.0106852]
[1726425416542,1.49810804,134.09,134.05,21.9426]
[1726425416716,23.776884,134.08,134.03,35.0680852]
[1726425417036,1.49810804,134.07,134.04,18.72336858]
[1726425417218,1.49810804,134.07,134.04,15.0680852]
[1726425419633,23.776884,134.09,134.04,15.0680852]
[1726425419840,1.49810804,134.08,134.04,15.0680852]
[1726425420219,23.776884,134.09,134.04,15.0680852]
[1726425420443,1.49810804,134.08,134.04,15.0680852]
[1726425420810,23.776884,134.06,134.02,6.4305]
[1726425421136,1.49810804,134.05,134.02,21.4985852]
[1726425421434,1.49810804,134.04,134.01,15.3163148]
[1726425421637,23.776884,134.07,134.01,15.3163148]
[1726425421851,47.70499204,134.07,134.01,0.2482296]
[1726425422134,39.805984,134.07,134.03,15.0680852]
[1726425423738,39.805984,134.07,134.02,15.0680852]
[1726425425226,1.49810804,134.06,134.02,15.0680852]
[1726425425845,1.49810804,134.06,134.01,0.2482296]
[1726425426140,1.49810804,134.06,134.01,15.3163148]
[1726425426838,23.776884,134.05,134.01,15.3163148]
[1726425427041,1.49810804,134.04,134.01,0.2482296]
[1726425428123,23.776884,134.03,134.01,0.2482296]
[1726425428352,1.49810804,134.02,134.01,0.2482296]
[1726425429347,23.776884,134.03,134.01,0.2482296]
[1726425429645,1.49810804,134.02,134.01,0.2482296]
[1726425429848,1.49810804,134.05,134.01,0.2482296]
[1726425430345,23.776884,134.04,134.01,0.2482296]
[1726425430549,1.49810804,134.03,134.01,0.2482296]
[1726425431147,23.776884,134.02,134.01,0.2482296]
[1726425433219,43.776884,134.02,134.01,0.2482296]
[1726425441556,66.206884,134.02,134.01,0.2482296]
[1726425443164,43.776884,134.02,134.01,0.2482296]
[1726425448354,67.70499204,134.02,134.01,0.2482296]
[1726425448669,67.70499204,134.02,133.97,0.2482296]
[1726425448670,81.680984,133.98,133.97,0.2482296]
[1726425448869,83.17909204,133.98,133.97,0.2482296]
[1726425449163,81.680984,133.98,133.97,0.2482296]
[1726425449367,83.17909204,133.98,133.97,0.2482296]
[1726425453387,83.17909204,133.98,133.94,0.07]
[1726425453552,43.776884,133.95,133.94,0.07]
[1726425453747,67.70499204,133.95,133.94,0.07]
[1726425455255,66.206884,133.95,133.94,0.07]
[1726425457074,67.70499204,133.95,133.94,0.07]
[1726425457455,66.206884,133.95,133.94,0.07]
[1726425457657,66.206884,133.95,133.89,0.2482296]
[1726425457658,109.21339083,133.95,133.89,0.2482296]
[1726425458074,99.78799204,133.95,133.89,0.2482296]
[1726425458276,51.245084,133.9,133.89,0.2482296]
[1726425458576,43.776884,133.9,133.89,0.2482296]
[1726425461777,66.206884,133.9,133.89,0.2482296]
[1726425461968,43.776884,133.9,133.89,0.2482296]
[1726425464388,23.776884,133.9,133.89,0.2482296]
[1726425466067,385.6,133.91,133.89,0.2482296]
[1726425466265,385.6,133.91,133.89,15.3163148]
[1726425467770,1.49810804,133.9,133.89,0.2482296]
[1726425468798,25.27499204,133.93,133.89,0.2482296]
[1726425469208,25.27499204,133.93,133.89,15.3163148]
[1726425470466,23.776884,133.93,133.89,15.3163148]
[1726425471567,25.27499204,133.93,133.89,15.3163148]
[1726425472095,1.49810804,133.92,133.89,15.3163148]
[1726425472287,1.49810804,133.92,133.89,0.2482296]
[1726425472590,23.776884,133.91,133.89,0.2482296]
[1726425472794,25.27499204,133.9,133.89,0.2482296]
[1726425474397,410.87499204,133.9,133.89,0.2482296]
[1726425478893,409.376884,133.9,133.89,0.2482296]
[1726425481908,431.806884,133.9,133.89,0.2482296]
[1726425482705,409.376884,133.9,133.89,0.2482296]
[1726425486108,23.776884,133.9,133.89,0.2482296]
[1726425488019,385.6,133.91,133.89,0.2482296]
[1726425488321,1.49810804,133.9,133.89,30.9200148]
[1726425488616,393.0653,133.96,133.89,30.9200148]
[1726425488617,8.96400804,133.95,133.89,15.8519296]
[1726425488786,1.49810804,133.95,133.89,0.2482296]
[1726425488989,22.43,133.94,133.89,0.2482296]
[1726425489290,23.92810804,133.93,133.89,0.2482296]
[1726425489702,23.776884,133.92,133.89,0.2482296]
[1726425490001,1.49810804,133.91,133.89,0.2482296]
[1726425491414,25.27499204,133.93,133.89,0.2482296]
[1726425491613,23.776884,133.91,133.89,0.2482296]
[1726425492513,23.776884,133.92,133.89,0.2482296]
[1726425492698,385.6,133.93,133.89,15.3163148]
[1726425492904,1.49810804,133.92,133.89,0.2482296]
[1726425494012,23.776884,133.91,133.89,0.2482296]
[1726425494220,1.49810804,133.9,133.89,0.2482296]
[1726425497221,385.6,133.93,133.89,15.3163148]
[1726425497514,385.6,133.93,133.89,0.2482296]
[1726425497817,1.49810804,133.92,133.89,0.2482296]
[1726425498400,42.43,133.94,133.89,0.2482296]
[1726425498600,1.49810804,133.93,133.89,0.2482296]
[1726425499305,23.776884,133.92,133.89,0.2482296]
[1726425500227,23.776884,133.93,133.89,0.2482296]
[1726425500421,1.49810804,133.91,133.89,0.2482296]
[1726425500714,23.776884,133.93,133.89,0.2482296]
[1726425502828,21.49810804,133.94,133.89,15.3163148]
[1726425503717,20.0,133.94,133.89,15.3163148]
[1726425503921,23.6924,133.97,133.91,15.0680852]
[1726425503922,385.6,133.96,133.91,15.0680852]
[1726425504114,385.6,133.96,133.92,15.0680852]
[1726425504606,385.6,133.96,133.91,15.0680852]
[1726425505707,23.776884,133.95,133.91,15.0680852]
[1726425507500,385.6,133.96,133.92,15.0680852]
[1726425508318,385.6,133.96,133.89,21.9659296]
[1726425508319,385.6,133.96,133.94,15.0680852]
[1726425509323,385.6,133.95,133.94,15.0680852]
[1726425511406,385.6,133.95,133.93,15.0680852]
[1726425511611,1.49810804,133.94,133.91,15.0680852]
[1726425512333,385.6,133.95,133.92,15.0680852]
[1726425512836,23.776884,133.98,133.92,15.0680852]
[1726425513724,23.776884,133.98,133.93,15.0680852]
[1726425514230,25.27499204,133.98,133.93,15.0680852]
[1726425515015,25.27499204,133.98,133.92,15.0680852]
[1726425515232,25.27499204,133.98,133.91,15.0680852]
[1726425515729,25.27499204,133.98,133.92,15.0680852]
[1726425516613,23.776884,133.98,133.92,15.0680852]
[1726425517840,23.776884,133.98,133.93,15.0680852]
[1726425518044,23.776884,133.98,133.94,15.0680852]
[1726425518635,23.776884,133.99,133.94,15.0680852]
[1726425519022,23.776884,133.99,133.93,15.0680852]
[1726425521943,23.776884,133.99,133.94,15.0680852]
[1726425524026,23.776884,133.99,133.93,15.0680852]
[1726425532558,6.1128,134.02,133.93,15.0680852]
[1726425532559,16.76314795,134.03,133.95,15.0680852]
[1726425532868,16.76314795,134.03,133.94,20.0]
[1726425532869,15.4628296,134.03,133.97,15.0680852]
[1726425534154,23.776884,134.02,133.97,15.0680852]
[1726425536365,23.776884,134.02,133.96,15.0680852]
[1726425542783,23.776884,134.02,133.97,15.0680852]
[1726425543877,23.776884,134.02,133.96,15.0680852]
[1726425545666,25.27499204,134.02,133.96,15.0680852]
[1726425546081,23.776884,134.02,133.96,15.0680852]
[1726425550776,23.776884,134.02,133.97,15.0680852]
[1726425551369,23.776884,134.02,133.96,15.0680852]
[1726425561290,401.0628296,134.03,133.98,15.0680852]
[1726425561291,385.8482296,134.03,133.98,15.0680852]
[1726425561591,385.8482296,134.03,133.95,7.34046239]
[1726425561592,385.8482296,134.03,134.0,15.0680852]
[1726425561885,0.2482296,134.03,134.0,15.0680852]
[1726425562100,0.2482296,134.03,133.99,20.0]
[1726425562263,0.2482296,134.03,134.0,15.0680852]
[1726425562464,0.2482296,134.03,134.01,15.0680852]
[1726425564189,0.2482296,134.03,134.0,15.0680852]
[1726425566813,0.2482296,134.03,133.99,35.0680852]
[1726425566991,0.2482296,134.03,133.98,15.5082]
[1726425566992,1.49810804,134.02,133.98,15.5082]
[1726425567198,1.49810804,134.02,133.97,6.5887]
[1726425567386,0.2482296,134.03,133.97,21.6567852]
[1726425567912,0.2482296,134.03,133.97,6.5887]
[1726425568084,23.776884,134.02,133.96,15.0680852]
[1726425568278,1.49810804,134.01,133.96,15.0680852]
[1726425569403,24.0251136,134.03,133.94,6.5887]
[1726425569603,23.776884,134.01,133.96,20.0]
[1726425569908,1.49810804,134.0,133.94,6.5887]
[1726425570112,23.776884,134.01,133.94,21.6567852]
[1726425570113,39.853684,134.01,133.94,21.6567852]
[1726425570403,39.853684,134.01,133.96,15.0680852]
[1726425571205,39.853684,134.01,133.95,15.0680852]
[1726425571983,1.49810804,134.0,133.95,15.0680852]
[1726425572210,23.776884,133.99,133.93,18.74041541]
[1726425572511,23.776884,133.99,133.94,20.0]
[1726425572686,23.776884,134.0,133.94,20.0]
[1726425576109,23.776884,134.0,133.94,23.67348124]
[1726425576289,23.776884,134.0,133.94,20.0]
[1726425576606,23.776884,134.0,133.94,23.67345253]
[1726425577205,23.776884,134.0,133.94,20.0]
[1726425577614,23.776884,134.0,133.93,15.0680852]
[1726425577907,23.776884,134.0,133.93,18.74165006]
[1726425579415,23.776884,134.0,133.93,3.67356486]
[1726425579704,23.776884,134.0,133.94,15.0680852]
[1726425584314,23.776884,134.0,133.93,3.67333117]
[1726425584494,23.776884,134.0,133.93,38.74141637]
[1726425584887,23.776884,134.0,133.93,35.0680852]
[1726425586102,23.776884,134.0,133.94,15.0680852]
[1726425592437,23.776884,134.0,133.94,13.3280812]
[1726425593235,23.776884,134.0,133.93,35.0680852]
[1726425598267,401.6768,134.01,133.95,15.0680852]
[1726425598419,401.6768,134.01,133.97,15.0680852]
[1726425598746,401.6768,134.01,133.98,15.0680852]